bitfinex/quotes_SOLUSD_20251212
["timestamp","ask_amount","ask_price","bid_price","bid_amount"]
[1765559241740,0.7,132.91,132.88,15.81801314]
[1765559241922,75.00000001,132.93,132.89,7.52502069]
[1765559242134,0.7,132.92,132.89,7.52502069]
[1765559242337,0.7,132.92,132.89,26.33757242]
[1765559242524,17.08795806,132.92,132.89,7.52502069]
[1765559242848,9.50994492,132.92,132.89,7.52502069]
[1765559243022,0.7,132.91,132.89,7.52502069]
[1765559243652,8.80994492,132.92,132.89,7.52502069]
[1765559243836,9.50994492,132.92,132.89,7.52502069]
[1765559244447,8.80994492,132.92,132.89,7.52502069]
[1765559244647,0.7,132.91,132.87,33.91935611]
[1765559244947,8.80994492,132.88,132.85,7.52717367]
[1765559245149,7.57801314,132.87,132.83,18.82047535]
[1765559245352,8.27801314,132.87,132.83,18.82047535]
[1765559245552,0.7,132.86,132.83,18.82047535]
[1765559245734,0.7,132.86,132.83,7.52830688]
[1765559246148,0.7,132.86,132.84,7.52778436]
[1765559246763,0.7,132.86,132.83,7.52841978]
[1765559247326,7.57801314,132.84,132.81,7.5293684]
[1765559247533,12.60566338,132.84,132.81,7.5293684]
[1765559247749,83.80994492,132.85,132.82,7.52898659]
[1765559247955,16.38795806,132.83,132.78,8.24]
[1765559248156,0.7,132.84,132.8,18.82440445]
[1765559248358,5.73003822,132.84,132.8,18.82440445]
[1765559248857,75.0,132.87,132.84,7.52785305]
[1765559249031,75.7,132.87,132.84,7.52785305]
[1765559249230,0.7,132.87,132.84,7.52785305]
[1765559249450,5.7299753,132.87,132.84,7.52785305]
[1765559250232,0.7,132.9,132.85,8.29801314]
[1765559250431,5.03067281,132.89,132.84,26.34748569]
[1765559250633,0.7,132.9,132.85,7.57801314]
[1765559250826,5.73007497,132.9,132.86,7.52671985]
[1765559251155,0.7,132.89,132.86,7.52671985]
[1765559251354,5.73007497,132.89,132.86,7.52671985]
[1765559251563,5.73007497,132.89,132.82,27.06198421]
[1765559251564,16.38795806,132.88,132.82,27.06198421]
[1765559251746,8.80994492,132.86,132.82,27.06198421]
[1765559252054,0.7,132.85,132.82,27.06198421]
[1765559252258,5.03387654,132.85,132.84,7.52785305]
[1765559252477,0.7,132.87,132.83,7.52787192]
[1765559252635,5.73347152,132.86,132.83,7.52787192]
[1765559253553,12.61461477,132.87,132.83,7.52787192]
[1765559253753,5.73347152,132.86,132.83,7.52787192]
[1765559253937,8.80994492,132.85,132.82,8.24]
[1765559254253,14.54341644,132.85,132.81,7.52900529]
[1765559254434,5.03347152,132.84,132.81,7.52900529]
[1765559254828,5.03347152,132.84,132.79,27.06580403]
[1765559254829,5.73347152,132.84,132.82,7.52888603]
[1765559255029,8.80994492,132.86,132.81,7.58114325]
[1765559255230,13.84422262,132.86,132.81,7.58114325]
[1765559255459,14.54422262,132.86,132.81,8.30114325]
[1765559255635,9.50994492,132.86,132.81,8.30114325]
[1765559256258,17.03672564,132.86,132.82,7.52898659]
[1765559256448,16.33672564,132.86,132.82,7.52898659]
[1765559256645,17.03672564,132.86,132.82,7.52898659]
[1765559257242,13.7470912,132.88,132.83,0.72]
[1765559257559,28.8538616,132.88,132.83,0.72]
[1765559257732,5.73313176,132.87,132.83,0.72]
[1765559258559,5.73313176,132.87,132.84,7.52785305]
[1765559258970,13.31427501,132.87,132.84,7.52785305]
[1765559259162,5.73313176,132.87,132.84,7.52785305]
[1765559260079,0.7,132.87,132.84,7.52785305]
[1765559260243,13.0470912,132.88,132.84,0.72]
[1765559260556,13.7470912,132.88,132.84,0.72]
[1765559261164,13.0470912,132.88,132.84,0.72]
[1765559261473,21.32823445,132.88,132.84,0.72]
[1765559261658,13.7470912,132.88,132.84,0.72]
[1765559262175,13.0470912,132.88,132.84,0.72]
[1765559262346,94.84436717,132.89,132.85,7.52728641]
[1765559262552,95.54436717,132.89,132.85,7.52728641]
[1765559262752,83.2250453,132.89,132.85,8.24728641]
[1765559262948,95.54436717,132.89,132.85,8.24728641]
[1765559263147,13.01932187,132.91,132.86,0.72]
[1765559263350,20.54325848,132.91,132.86,0.72]
[1765559263879,12.31932187,132.89,132.85,7.52728641]
[1765559264369,20.54439043,132.89,132.85,7.52728641]
[1765559264948,12.31932187,132.87,132.84,15.76774739]
[1765559265148,13.01932187,132.88,132.84,15.76774739]
[1765559265351,8.80994492,132.88,132.84,34.58738003]
[1765559265652,104.3,132.91,132.86,12.31932187]
[1765559265850,104.3,132.91,132.87,0.72]
[1765559266368,12.31932187,132.89,132.84,27.06738003]
[1765559266577,29.35386581,132.9,132.84,27.06738003]
[1765559266756,0.7,132.89,132.84,27.06738003]
[1765559267162,13.01932187,132.89,132.84,27.06738003]
[1765559267570,13.01932187,132.88,132.84,8.24774739]
[1765559267873,13.01932187,132.88,132.84,7.52774739]
[1765559268054,0.7,132.87,132.84,7.52774739]
[1765559268455,0.7,132.87,132.83,7.52841978]
[1765559268655,12.31932187,132.88,132.83,8.24841978]
[1765559268878,0.7,132.88,132.84,0.72]
[1765559269068,5.73953789,132.88,132.84,0.72]
[1765559269475,5.73953789,132.89,132.84,0.72]
[1765559269678,0.7,132.89,132.84,13.03932187]
[1765559269859,21.82926679,132.92,132.86,12.31932187]
[1765559270177,5.03859765,132.91,132.86,12.31932187]
[1765559270377,1e-08,132.93,132.89,12.31932187]
[1765559270890,1e-08,132.93,132.9,0.67]
[1765559271097,1e-08,132.93,132.91,12.31932187]
[1765559271270,1e-08,132.93,132.91,0.28432314]
[1765559271589,1e-08,132.93,132.92,0.67]
[1765559272483,1e-08,132.93,132.92,8.19332229]
[1765559272876,1e-08,132.93,132.92,20.51264416]
[1765559273276,1e-08,132.93,132.92,8.19332229]
[1765559273587,1e-08,132.93,132.92,20.51264416]
[1765559273995,1e-08,132.93,132.92,8.19332229]
[1765559275493,1e-08,132.93,132.92,20.51264416]
[1765559276190,1e-08,132.93,132.92,8.19332229]
[1765559276391,1e-08,132.93,132.92,20.7969673]
[1765559276687,1e-08,132.93,132.92,8.19332229]
[1765559276889,1e-08,132.93,132.92,28.75264416]
[1765559277266,1e-08,132.93,132.92,42.0840585]
[1765559277667,1e-08,132.93,132.92,29.76473663]
[1765559277991,1e-08,132.93,132.92,42.0840585]
[1765559278571,1e-08,132.93,132.92,28.75264416]
[1765559278774,1e-08,132.93,132.92,15.76332229]
[1765559279099,1e-08,132.93,132.92,28.89480573]
[1765559279394,1e-08,132.93,132.92,29.0369673]
[1765559280586,1e-08,132.93,132.92,21.52473663]
[1765559280895,1e-08,132.93,132.92,42.0840585]
[1765559281393,5.68943648,133.0,132.93,0.28432314]
[1765559281394,5.02943648,133.0,132.93,0.28432314]
[1765559281596,5.68600532,133.01,132.95,12.31932187]
[1765559281790,5.68600532,133.01,132.96,8.24]
[1765559281989,5.02600532,133.01,132.96,20.55932187]
[1765559282189,0.76,133.05,133.0,12.31932187]
[1765559282390,0.76,133.05,133.0,8.24]
[1765559282707,12.31932187,133.04,133.01,7.51823171]
[1765559283006,0.76,133.05,133.01,7.51823171]
[1765559283202,0.1,133.07,133.02,0.67]
[1765559283383,12.27326791,133.14,133.06,13.0470912]
[1765559283384,75.66,133.14,133.06,13.0470912]
[1765559283712,0.66,133.14,133.07,9.19432314]
[1765559283873,0.66,133.14,133.08,0.95432314]
[1765559284273,0.66,133.14,133.08,0.28432314]
[1765559284476,0.66,133.14,133.08,12.60364501]
[1765559284683,0.66,133.14,133.09,7.51371252]
[1765559285181,0.66,133.14,133.1,12.31932187]
[1765559285385,0.66,133.14,133.1,0.67]
[1765559285574,0.66,133.17,133.12,12.31932187]
[1765559285774,0.66,133.17,133.11,8.91]
[1765559285993,0.66,133.17,133.11,21.22932187]
[1765559286274,0.66,133.17,133.11,8.24]
[1765559286469,0.66,133.17,133.12,12.31932187]
[1765559286704,150.66,133.17,133.11,15.75232371]
[1765559287004,12.31932187,133.16,133.11,15.75232371]
[1765559287185,0.66,133.16,133.12,12.31932187]
[1765559287506,12.31932187,133.18,133.12,7.51198989]
[1765559287798,0.66,133.17,133.13,12.31932187]
[1765559288304,75.66,133.21,133.16,12.31932187]
[1765559288499,75.66,133.21,133.17,0.67]
[1765559288500,0.66,133.21,133.17,0.67]
[1765559288703,4.9608021,133.22,133.18,7.50863493]
[1765559288904,3.62902875,133.27,133.21,12.31932187]
[1765559289208,0.66,133.26,133.19,8.24]
[1765559289503,8.80994492,133.24,133.19,8.24]
[1765559289903,0.66,133.23,133.19,8.24]
[1765559290086,75.0,133.25,133.19,8.24]
[1765559290288,86.13300947,133.27,133.19,8.24]
[1765559290289,3.62902875,133.27,133.24,12.25373899]
[1765559290490,3.62902875,133.27,133.25,0.67]
[1765559290806,0.66,133.26,133.24,7.50506074]
[1765559291013,3.62902875,133.27,133.24,19.75879973]
[1765559291181,3.62902875,133.27,133.24,7.50506074]
[1765559291377,4.28902875,133.27,133.24,7.50506074]
[1765559291888,3.62902875,133.27,133.24,8.17506074]
[1765559292106,3.62902875,133.27,133.21,27.6562446]
[1765559292310,12.91373899,133.26,133.21,8.22]
[1765559292605,7.50525367,133.24,133.21,8.22]
[1765559292803,19.75899266,133.24,133.21,8.22]
[1765559293003,0.66,133.24,133.21,15.72685319]
[1765559293387,0.66,133.24,133.21,8.22]
[1765559293579,12.91373899,133.24,133.21,8.22]
[1765559293779,0.66,133.24,133.21,8.22]
[1765559293988,0.66,133.23,133.21,8.22]
[1765559294189,75.0,133.25,133.21,8.22]
[1765559294387,3.62902875,133.27,133.23,12.25373899]
[1765559294682,3.62902875,133.27,133.22,20.43005861]
[1765559294884,3.62902875,133.27,133.23,19.75954425]
[1765559295101,0.66,133.26,133.23,7.50560295]
[1765559295315,0.66,133.26,133.22,7.50632703]
[1765559295518,0.66,133.26,133.22,7.50613858]
[1765559295701,3.62902875,133.27,133.23,7.50580907]
[1765559295901,0.66,133.26,133.23,7.50556348]
[1765559296285,87.91373899,133.26,133.21,8.22]
[1765559296482,87.91373899,133.26,133.21,15.72688962]
[1765559296731,83.80994492,133.24,133.17,7.50909738]
[1765559296883,12.25373899,133.19,133.15,8.22]
[1765559297090,12.25373899,133.18,133.12,0.67]
[1765559297306,12.91373899,133.19,133.14,7.51076656]
[1765559297519,12.91373899,133.19,133.13,19.76474895]
[1765559297812,12.91373899,133.19,133.1,7.51264689]
[1765559297813,8.80994492,133.17,133.1,7.51264689]
[1765559298018,12.25373899,133.15,133.09,8.89]
[1765559298193,12.25373899,133.15,133.1,7.51300474]
[1765559298516,0.66,133.14,133.09,8.22]
[1765559298718,7.51152608,133.13,133.09,8.22]
[1765559299012,12.91373899,133.14,133.08,31.03907709]
[1765559299214,0.66,133.13,133.09,7.51362771]
[1765559299517,13.0470912,133.16,133.11,12.25373899]
[1765559299823,0.66,133.15,133.09,26.96790902]
[1765559300114,12.25373899,133.13,133.09,7.51362771]
[1765559300289,75.7,133.15,133.09,20.4873667]
[1765559300689,0.7,133.15,133.09,39.27164801]
[1765559301098,8.21033053,133.15,133.09,27.01790902]
[1765559301299,20.46406952,133.15,133.09,27.01790902]
[1765559301506,0.7,133.15,133.09,39.27164801]
[1765559301692,12.25373899,133.14,133.09,27.01790902]
[1765559302195,0.7,133.15,133.09,7.51362771]
[1765559302526,95.46354295,133.16,133.09,39.27164801]
[1765559302696,95.46354295,133.16,133.1,12.25373899]
[1765559302901,95.46354295,133.16,133.09,39.27164801]
[1765559303096,21.85703612,133.13,133.06,27.7271479]
[1765559303304,88.0470912,133.13,133.07,7.51471867]
[1765559303513,12.95373899,133.12,133.08,7.51410473]
[1765559303715,0.7,133.12,133.06,39.98088689]
[1765559303931,0.7,133.12,133.09,7.51361925]
[1765559304219,87.25373899,133.13,133.09,7.51361925]
[1765559304220,75.0,133.13,133.09,7.51361925]
[1765559304394,75.65,133.12,133.08,7.51426401]
[1765559304593,75.65,133.12,133.08,7.51384175]
[1765559304911,75.65,133.12,133.06,8.22]
[1765559304912,0.65,133.12,133.07,38.55475786]
[1765559305111,75.0,133.14,133.08,12.25373899]
[1765559305327,87.90373899,133.14,133.08,0.66]
[1765559305625,87.90373899,133.14,133.08,12.91373899]
[1765559305808,87.25373899,133.14,133.08,0.66]
[1765559306132,75.0,133.12,133.07,7.51484181]
[1765559306296,12.25373899,133.11,133.07,7.51484181]
[1765559306492,0.65,133.12,133.07,26.96194634]
[1765559306698,75.0,133.14,133.09,7.51371252]
[1765559306898,12.25373899,133.1,133.09,7.51371252]
[1765559307095,12.25373899,133.1,133.05,7.51584199]
[1765559307427,12.25373899,133.06,133.0,0.66]
[1765559307720,12.25373899,133.04,133.01,7.51823171]
[1765559308124,0.65,133.05,133.01,7.51823171]
[1765559308423,0.65,133.05,133.01,38.56754997]
[1765559308610,12.90373899,133.07,133.01,39.22754997]
[1765559308923,12.90373899,133.07,133.01,26.97381098]
[1765559309117,0.65,133.07,133.01,26.97381098]
[1765559309317,0.65,133.07,133.01,39.22754997]
[1765559309522,87.25373899,133.08,133.02,12.91373899]
[1765559309821,12.90373899,133.09,133.02,0.94432314]
[1765559309996,12.90373899,133.09,133.03,0.66]
[1765559310402,12.90373899,133.09,133.03,12.91373899]
[1765559310600,75.0,133.12,133.04,12.25373899]
[1765559310834,83.1624877,133.12,133.06,26.30392303]
[1765559311024,0.65,133.11,133.06,38.55766202]
[1765559311199,0.65,133.11,133.06,26.30392303]
[1765559311411,0.65,133.11,133.06,26.96392303]
[1765559311622,0.65,133.11,133.06,39.21766202]
[1765559312006,0.65,133.11,133.06,26.96392303]
[1765559312615,12.25373899,133.12,133.06,26.96392303]
[1765559312828,12.25373899,133.11,133.06,26.96392303]
[1765559313615,95.55863856,133.13,133.06,26.96392303]
[1765559313811,12.25373899,133.11,133.06,26.96392303]
[1765559314035,158.24,133.11,133.06,7.51540658]
[1765559314222,12.25373899,133.09,133.06,7.51540658]
[1765559314721,12.90373899,133.09,133.06,7.51540658]
[1765559314920,0.65,133.09,133.05,7.51597143]
[1765559315129,12.90373899,133.09,133.05,7.51597143]
[1765559315435,20.49373899,133.11,133.06,0.66]
[1765559315738,0.65,133.12,133.05,26.30590002]
[1765559315739,0.65,133.1,133.05,26.30590002]
[1765559315910,12.25373899,133.08,133.05,26.30590002]
[1765559316112,0.65,133.1,133.05,26.30590002]
[1765559316310,12.25373899,133.09,133.05,26.30590002]
[1765559316748,12.90373899,133.09,133.05,26.30590002]
[1765559316948,5.61990368,133.08,133.05,7.51597143]
[1765559317116,5.61990368,133.08,132.97,7.96879822]
[1765559317117,12.25373899,133.06,132.97,7.96879822]
[1765559317444,13.1341996,133.08,132.84,37.48126698]
[1765559317445,12.25373899,133.0,132.98,7.5199278]
[1765559317622,12.25373899,133.01,132.98,7.5199278]
[1765559317819,12.25373899,133.0,132.97,7.52043664]
[1765559318224,0.65,132.99,132.95,15.74108403]
[1765559318526,12.25373899,132.98,132.95,15.74108403]
[1765559318747,105.09703612,133.01,132.97,7.52040577]
[1765559318916,12.25373899,132.99,132.95,8.22]
[1765559319116,12.25373899,132.97,132.92,19.00798236]
[1765559319743,12.25373899,132.96,132.92,19.00798236]
[1765559319920,12.90373899,132.97,132.93,7.52236558]
[1765559320612,12.25373899,132.97,132.93,7.52236558]
[1765559320817,12.25373899,132.97,132.92,19.00798236]
[1765559320818,12.25373899,132.95,132.92,7.72319564]
[1765559321020,0.65,132.95,132.92,0.2]
[1765559321237,12.90373899,132.95,132.92,0.2]
[1765559321441,117.20373899,132.97,132.92,7.72319024]
[1765559321743,117.20373899,132.97,132.92,8.38319024]
[1765559322224,12.25373899,132.96,132.92,8.38319024]
[1765559322584,12.25373899,132.94,132.92,0.2]
[1765559322838,30.27689847,132.93,132.92,0.2]
[1765559323014,18.67315948,132.93,132.92,0.2]
[1765559323213,4.97606828,132.93,132.92,0.2]
[1765559323444,126.2370912,132.95,132.92,0.2]
[1765559323738,4.97307702,132.94,132.92,7.72314722]
[1765559324143,8.24,132.95,132.92,7.72314722]
[1765559324439,88.0470912,132.97,132.92,27.19145296]
[1765559324440,28.86073146,132.97,132.92,27.19145296]
[1765559324638,8.22364026,132.96,132.92,7.72314722]
[1765559324843,13.19421051,132.96,132.92,7.72314722]
[1765559325023,8.22364026,132.96,132.92,7.72314722]
[1765559325641,28.86073146,132.97,132.92,8.38314722]
[1765559325945,8.22364026,132.96,132.92,7.72314722]
[1765559326139,7.57364026,132.95,132.92,0.2]
[1765559326344,0.65,132.95,132.92,0.2]
[1765559326549,8.89,132.94,132.92,0.2]
[1765559326724,7.57364026,132.93,132.92,0.2]
[1765559326923,8.22364026,132.93,132.92,0.2]
[1765559328036,99.55634151,132.93,132.92,0.2]
[1765559328235,17.69994492,132.96,132.92,0.2]
[1765559328456,25.22100388,132.96,132.92,0.2]
[1765559328746,8.22432254,132.95,132.92,0.2]
[1765559329044,7.57432254,132.94,132.92,0.2]
[1765559329262,8.22432254,132.94,132.92,0.2]
[1765559329438,0.65,132.94,132.92,0.2]
[1765559329626,7.57432254,132.95,132.92,0.2]
[1765559329824,25.22100388,132.96,132.92,7.72318204]
[1765559329825,8.24,132.96,132.92,7.72318204]
[1765559330083,88.0470912,132.97,132.92,8.38318204]
[1765559330250,88.0470912,132.97,132.93,0.71]
[1765559330455,16.46432254,132.98,132.93,0.71]
[1765559331349,7.57432254,132.97,132.94,7.52219046]
[1765559331646,8.89,132.98,132.94,7.52219046]
[1765559331857,16.46432254,132.98,132.94,7.52219046]
[1765559332025,7.57432254,132.97,132.94,7.52219046]
[1765559332221,7.57432254,132.96,132.94,7.52219046]
[1765559332457,7.57432254,133.0,132.95,0.71]
[1765559333252,7.57432254,133.0,132.96,7.52105896]
[1765559333530,99.0230993,133.01,132.96,7.52105896]
[1765559333825,99.0230993,133.01,132.96,8.23105896]
[1765559334921,83.93,133.01,132.96,7.52105896]
[1765559335138,8.24,133.01,132.97,0.71]
[1765559335447,7.57432254,133.01,132.96,26.32370637]
[1765559335649,16.32792566,133.02,132.97,0.71]
[1765559335825,23.9022482,133.02,132.97,0.71]
[1765559336024,23.9022482,133.02,132.96,7.52105896]
[1765559336025,7.57432254,132.99,132.96,7.52105896]
[1765559336248,7.57432254,132.98,132.94,8.95]
[1765559336725,7.57432254,132.98,132.96,7.52103421]
[1765559336925,13.0470912,133.0,132.96,7.52103421]
[1765559337129,21.31141374,133.0,132.96,7.52103421]
[1765559337353,13.7370912,133.0,132.96,7.52103421]
[1765559337650,13.0470912,133.0,132.96,8.23103421]
[1765559337858,165.81432254,133.01,132.96,8.23103421]
[1765559338025,166.50432254,133.01,132.96,8.23103421]
[1765559338227,8.24,133.01,132.97,0.71]
[1765559338426,107.83144518,133.03,132.97,8.28432254]
[1765559338640,83.93,133.03,132.97,8.28432254]
[1765559338834,8.93,133.03,132.98,0.71]
[1765559339048,16.50432254,133.03,132.99,7.51936235]
[1765559339230,124.92141374,133.04,132.99,7.51936235]
[1765559339437,124.92141374,133.04,133.0,0.71]
[1765559339738,7.57432254,133.03,132.99,7.51936235]
[1765559339932,7.57432254,133.01,132.98,15.75973565]
[1765559340130,111.87432254,133.0,132.9,37.61961504]
[1765559340332,7.57432254,132.98,132.93,8.95]
[1765559340654,7.57432254,132.98,132.9,8.95]
[1765559340655,7.57432254,132.95,132.9,8.95]
[1765559340855,7.57432254,132.96,132.92,0.91]
[1765559341061,7.57432254,132.96,132.93,7.52267456]
[1765559341243,12.55006501,132.97,132.93,8.23267456]
[1765559341428,4.97574247,132.96,132.93,27.0395654]
[1765559341633,7.57432254,132.96,132.93,7.52267456]
[1765559341860,7.57432254,132.94,132.92,0.2]
[1765559342051,12.55006501,132.93,132.92,0.2]
[1765559342357,171.36000993,132.93,132.92,0.2]
[1765559342546,180.29000993,132.93,132.92,0.2]
[1765559342954,96.48006501,132.93,132.92,0.2]
[1765559343157,96.4284988,132.93,132.92,0.2]
[1765559343360,96.4284988,132.93,132.86,8.24]
[1765559343361,150.0,132.91,132.86,8.24]
[1765559343566,109.27574247,132.9,132.86,24.05093962]
[1765559343742,4.97574247,132.89,132.87,0.71]
[1765559344059,104.3,132.9,132.87,0.71]
[1765559345161,12.56906536,132.89,132.86,8.24]
[1765559345366,4.99474282,132.88,132.86,7.52666351]
[1765559345531,4.99474282,132.87,132.84,0.71]
[1765559345843,4.99662736,132.86,132.83,7.52803865]
[1765559346049,0.69,132.88,132.83,8.23803865]
[1765559346050,4.99662736,132.85,132.83,8.23803865]
[1765559346381,104.3,132.87,132.83,8.23803865]
[1765559346539,4.99625644,132.86,132.84,0.71]
[1765559346731,104.3,132.87,132.84,0.71]
[1765559346936,4.99604207,132.86,132.84,0.71]
[1765559347155,104.3,132.87,132.85,7.52728641]
[1765559347645,14.48445734,132.9,132.86,0.71]
[1765559347839,4.99639403,132.89,132.86,0.71]
[1765559348045,4.99639403,132.88,132.86,0.71]
[1765559348240,13.26071657,132.87,132.82,0.71]
[1765559348447,4.99639403,132.86,132.83,7.52796264]
[1765559348662,4.99639403,132.85,132.82,7.52889707]
[1765559348879,4.99639403,132.84,132.82,7.52889707]
[1765559349162,8.26432254,132.86,132.82,7.52889707]
[1765559349360,4.995533,132.85,132.82,7.52889707]
[1765559349570,4.995533,132.84,132.82,7.52889707]
[1765559349737,7.57432254,132.86,132.82,8.23889707]
[1765559349938,4.99813799,132.85,132.82,8.23889707]
[1765559350137,4.99813799,132.84,132.82,8.23889707]
[1765559350449,88.77094934,132.87,132.82,8.23889707]
[1765559350650,4.9989462,132.86,132.82,7.52889707]
[1765559350960,4.9989462,132.85,132.81,7.52948766]
[1765559351146,4.9989462,132.84,132.82,0.71]
[1765559351339,13.81877988,132.87,132.82,0.71]
[1765559351538,4.99926412,132.86,132.82,0.71]
[1765559351739,4.99926412,132.85,132.82,0.71]
[1765559351956,28.86141374,132.88,132.82,0.71]
[1765559352153,12.57311106,132.87,132.82,0.71]
[1765559352353,4.99878852,132.86,132.82,0.71]
[1765559352533,7.57432254,132.87,132.82,0.71]
[1765559352534,4.99878852,132.85,132.82,0.71]
[1765559352737,4.99878852,132.86,132.82,0.71]
[1765559352961,4.99878852,132.86,132.81,7.52903118]
[1765559352962,4.99878852,132.85,132.81,7.52903118]
[1765559353161,4.99878852,132.84,132.81,0.71]
[1765559353366,4.99878852,132.85,132.82,27.06100815]
[1765559353575,4.99878852,132.86,132.82,42.87533069]
[1765559353768,28.86141374,132.88,132.83,0.71]
[1765559354066,4.9969101,132.87,132.83,0.71]
[1765559354278,4.9969101,132.86,132.83,8.28432254]
[1765559354433,8.24,132.9,132.84,7.57432254]
[1765559354635,4.99645099,132.89,132.84,8.28432254]
[1765559354834,4.99645099,132.89,132.87,7.57432254]
[1765559355072,6.24445734,132.92,132.88,8.23558699]
[1765559355073,4.99645099,132.91,132.88,8.23558699]
[1765559355244,4.99645099,132.9,132.88,8.23558699]
[1765559355445,4.99645099,132.91,132.88,8.23558699]
[1765559355646,4.99645099,132.9,132.88,8.23558699]
[1765559355846,4.99645099,132.91,132.88,7.52558699]
[1765559356078,4.99645099,132.9,132.88,7.52558699]
[1765559356377,164.48445734,132.93,132.88,27.04955447]
[1765559356378,4.99645099,132.91,132.88,27.04955447]
[1765559356548,4.99645099,132.92,132.89,0.71]
[1765559356939,4.99645099,132.92,132.9,7.52445447]
[1765559357144,4.99645099,132.94,132.9,33.9099132]
[1765559357360,12.57077353,132.95,132.91,0.71]
[1765559357577,12.57077353,132.94,132.9,7.52445447]
[1765559357757,4.99645099,132.93,132.91,0.72]
[1765559358067,4.99645099,132.94,132.91,0.72]
[1765559358254,4.99645099,132.95,132.91,0.72]
[1765559358455,4.99645099,132.94,132.91,0.72]
[1765559358653,16.38426746,132.96,132.91,0.72]
[1765559358965,12.58530544,132.95,132.91,8.24333729]
[1765559359170,5.0109829,132.94,132.91,8.24333729]
[1765559359466,5.0109829,132.93,132.91,7.52333729]
[1765559359772,5.0109829,132.92,132.91,7.52333729]
[1765559360067,5.0109829,132.94,132.91,7.52333729]
[1765559360364,5.0109829,132.94,132.9,7.52429542]
[1765559360365,5.0109829,132.93,132.9,7.52429542]
[1765559360571,7.57432254,132.94,132.91,7.52388834]
[1765559360572,5.02104512,132.92,132.91,7.52388834]
[1765559360947,5.02104512,132.92,132.9,7.52445447]
[1765559361141,14.50877988,132.95,132.9,7.52445447]
[1765559361344,5.02174602,132.94,132.9,27.02559066]
[1765559361556,12.59606856,132.93,132.9,7.52445447]
[1765559361764,5.02174602,132.92,132.9,7.52445447]
[1765559361972,5.02174602,132.91,132.89,7.52496286]
[1765559362179,5.02174602,132.9,132.88,15.76541681]
[1765559362390,5.02174602,132.89,132.88,15.76541681]
[1765559362679,5.02174602,132.89,132.88,7.52541681]
[1765559363077,5.02174602,132.89,132.87,7.52615338]
[1765559363285,22.74877988,132.92,132.87,8.21615338]
[1765559363454,5.03114902,132.91,132.87,8.21615338]
[1765559363656,5.03114902,132.9,132.87,8.21615338]
[1765559363856,5.03114902,132.89,132.87,8.21615338]
[1765559364178,8.24,132.92,132.88,0.69]
[1765559364369,5.03143138,132.91,132.87,26.34153683]
[1765559364686,5.03143138,132.9,132.89,7.57432254]
[1765559364860,0.69,132.92,132.87,26.34153683]
[1765559365059,5.03152889,132.91,132.87,26.34153683]
[1765559367470,5.03252932,132.9,132.86,0.69]
[1765559367659,5.03252932,132.89,132.86,0.69]
[1765559367978,5.03252932,132.88,132.86,0.69]
[1765559368182,17.07771587,132.91,132.86,0.69]
[1765559368361,5.032694,132.9,132.86,0.69]
[1765559368681,5.032694,132.89,132.87,7.52615338]
[1765559368887,17.07771587,132.91,132.87,7.52615338]
[1765559369083,5.03210358,132.9,132.87,7.52615338]
[1765559369278,5.03210358,132.89,132.87,7.52615338]
[1765559369484,97.0077852,132.92,132.87,27.03153683]
[1765559369485,97.06222829,132.92,132.87,27.03153683]
[1765559369663,12.60981702,132.91,132.87,27.03153683]
[1765559369866,5.03204607,132.9,132.87,7.52615338]
[1765559370078,5.03204607,132.89,132.87,7.52615338]
[1765559370383,5.03204607,132.88,132.87,7.52615338]
[1765559370682,5.03204607,132.88,132.86,7.52671985]
[1765559370870,13.82222829,132.91,132.86,27.03351948]
[1765559371069,5.03073748,132.9,132.87,0.69]
[1765559371269,5.03073748,132.89,132.87,0.69]
[1765559371469,5.03073748,132.88,132.86,26.34351948]
[1765559371672,0.69,132.9,132.86,26.34351948]
[1765559371874,5.03160077,132.89,132.86,27.03351948]
[1765559372088,5.03160077,132.88,132.86,27.03351948]
[1765559372385,88.82222829,132.91,132.86,27.03351948]
[1765559372386,5.03198895,132.9,132.86,27.03351948]
[1765559372586,5.03198895,132.89,132.87,0.69]
[1765559372883,83.26777095,132.91,132.87,0.69]
[1765559373057,5.03070422,132.9,132.87,0.69]
[1765559373257,5.03070422,132.89,132.87,0.69]
[1765559373483,0.69,132.91,132.87,0.69]